[Event "Catalonia Championship Absolute 2024"]
[Site "Salou Tarragona"]
[Date "2024.05.12"]
[Round "1.1"]
[White "Garcia Ramos, Daniel"]
[Black "Cervello Tost, Ferran"]
[Result "1-0"]
[ECO "B12"]
[WhiteElo "2406"]
[BlackElo "2316"]
[Annotator "ChessBase"]
[PlyCount "91"]
[EventDate "2024.05.06"]
[EventType "k.o."]
[EventCountry "ESP"]
[SourceTitle "playchess.com"]
[Source "ChessBase"]
[SourceQuality "1"]
[TimeControl "5400+30"]

1. e4 {[%emt 0:00:05]} c6 {[%emt 0:00:09]} 2. d4 {[%emt 0:00:13]} d5 {[%emt 0:00:08]} 3. e5 {[%emt 0:00:14]} a6 {[%emt 0:00:15]} 4. c4 {[%emt 0:05:24]} Bf5 {[%emt 0:00:14]} 5. Nc3 {[%emt 0:00:32]} e6 {[%emt 0:00:48]} 6. h4 {[%emt 0:06:11]} h5 {[%emt 0:04:04]} 7. Nf3 {[%emt 0:05:29]} Bg4 {[%emt 0:06:20]} 8. Be3 {[%emt 0:10:04]} Ne7 {[%emt 0:09:39]} 9. Rc1 {[%emt 0:08:58]} Nf5 {[%emt 0:07:18]} 10. Qb3 {[%emt 0:02:17]} Nxe3 {[%emt 0:10:47]} 11. fxe3 {[%emt 0:18:43]} Nd7 {[%emt 0:03:13]} 12. Qxb7 {[%emt 0:11:35]} Rb8 {[%emt 0:08:05]} 13. Qxc6 {[%emt 0:00:56]} Rxb2 {[%emt 0:01:41]} 14. cxd5 {[%emt 0:04:14]} Bb4 {[%emt 0:02:53]} 15. Be2 {[%emt 0:02:02]} O-O {[%emt 0:03:35]} 16. Kf1 {[%emt 0:04:43]} Qa5 {[%emt 0:08:20]} 17. Nd1 {[%emt 0:03:13]} Nb8 {[%emt 0:08:33]} 18. Qc7 {[%emt 0:00:28]} Rxa2 {[%emt 0:00:45]} 19. Qxa5 {[%emt 0:01:20]} Bxa5 {[%emt 0:00:09]} 20. dxe6 {[%emt 0:05:01]} fxe6 {[%emt 0:00:21]} 21. Kf2 {[%emt 0:00:24]} Nd7 {[%emt 0:01:43]} 22. Nc3 {[%emt 0:00:35]} Bxc3 {[%emt 0:01:58]} 23. Rxc3 {[%emt 0:00:05]} Rb8 {[%emt 0:02:40]} 24. Re1 {[%emt 0:01:57]} Nf8 {[%emt 0:03:29]} 25. Kg3 {[%emt 0:02:43]} Rbb2 {[%emt 0:03:58]} 26. Bf1 {[%emt 0:00:06]} Bxf3 {[%emt 0:01:20]} 27. gxf3 {[%emt 0:00:13]} Ng6 {[%emt 0:00:52]} 28. Bh3 {[%emt 0:00:22]} Kh7 {[%emt 0:01:55]} 29. Rc6 {[%emt 0:00:52]} Rh2 {[%emt 0:00:57]} 30. Rxe6 {[%emt 0:01:22]} Nxh4 {[%emt 0:01:30]} 31. Kxh4 {[%emt 0:00:32]} Rag2 {[%emt 0:00:04]} 32. Re7 {[%emt 0:01:49]} Kh6 {[%emt 0:01:09]} 33. Re6+ {[%emt 0:00:54]} Kh7 {[%emt 0:01:16]} 34. Re7 {[%emt 0:00:04]} Kh6 {[%emt 0:00:03]} 35. Rxg7 {[%emt 0:02:13]} Rxg7 {[%emt 0:00:07]} 36. Ra1 {[%emt 0:00:57]} Rg6 {[%emt 0:01:24]} 37. d5 {[%emt 0:00:59]} Rf2 {[%emt 0:01:44]} 38. Rf1 {[%emt 0:01:08]} Rd2 {[%emt 0:00:42]} 39. d6 {[%emt 0:00:21]} Rg5 {[%emt 0:02:27]} 40. f4 {[%emt 0:00:07]} Rg8 {[%emt 0:00:43]} 41. Rf3 {[%emt 0:00:02]} a5 {[%emt 0:00:19]} 42. Be6 {[%emt 0:01:09]} Rg7 {[%emt 0:00:58]} 43. Rg3 {[%emt 0:00:45]} Rh2+ {[%emt 0:02:02]} 44. Bh3 {[%emt 0:00:25]} Ra7 {[%emt 0:01:01]} 45. e6 {[%emt 0:00:15]} a4 {[%emt 0:00:45]} 46. e7 {[%emt 0:00:07]} 1-0

[Event "Catalonia Championship Absolute 2024"]
[Site "Salou Tarragona"]
[Date "2024.05.12"]
[Round "1.2"]
[White "Granados Gomez, Manuel"]
[Black "Farran Martos, Francesc X.."]
[Result "1-0"]
[ECO "A36"]
[WhiteElo "2358"]
[BlackElo "2362"]
[Annotator "ChessBase"]
[PlyCount "83"]
[EventDate "2024.05.06"]
[EventType "k.o."]
[EventCountry "ESP"]
[SourceTitle "playchess.com"]
[Source "ChessBase"]
[SourceQuality "1"]
[TimeControl "5400+30"]

1. e4 {[%emt 0:00:08]} c5 {[%emt 0:01:12]} 2. c4 {[%emt 0:00:13]} Nc6 {[%emt 0:01:37]} 3. Nc3 {[%emt 0:00:20]} g6 {[%emt 0:01:05]} 4. g3 {[%emt 0:00:39]} Bg7 {[%emt 0:01:14]} 5. Bg2 {[%emt 1:31:40]} e6 {[%emt 0:03:00]} 6. Nge2 {[%emt 0:00:00]} Nge7 {[%emt 0:00:34]} 7. d3 {[%emt 0:00:00]} O-O {[%emt 0:02:31]} 8. O-O {[%emt 0:00:00]} d6 {[%emt 0:01:16]} 9. Be3 {[%emt 0:00:00]} Nd4 {[%emt 0:01:04]} 10. Qd2 {[%emt 0:00:00]} Nec6 {[%emt 0:01:18]} 11. Bh6 {[%emt 0:00:00]} a6 {[%emt 0:04:11]} 12. Bxg7 {[%emt 0:00:00]} Kxg7 {[%emt 0:00:28]} 13. Nxd4 {[%emt 0:00:00]} Nxd4 {[%emt 0:00:43]} 14. Ne2 {[%emt 0:00:00]} Nxe2+ {[%emt 0:04:24]} 15. Qxe2 {[%emt 0:00:00]} e5 {[%emt 0:00:28]} 16. f4 {[%emt 0:00:00]} b5 {[%emt 0:00:42]} 17. f5 {[%emt 0:00:00]} f6 {[%emt 0:01:10]} 18. g4 {[%emt 0:00:00]} Rb8 {[%emt 0:02:24]} 19. h4 {[%emt 0:00:00]} Rf7 {[%emt 0:13:07]} 20. Rf3 {[%emt 0:00:00]} Qb6 {[%emt 0:05:47]} 21. b3 {[%emt 0:00:00]} Bd7 {[%emt 0:03:16]} 22. Raf1 {[%emt 0:00:00]} Rbf8 {[%emt 0:01:02]} 23. Qd2 {[%emt 0:00:00]} Qd8 {[%emt 0:08:30]} 24. Kh2 {[%emt 0:00:00]} gxf5 {[%emt 0:09:31]} 25. exf5 {[%emt 0:00:00]} Bc6 {[%emt 0:14:13]} 26. Rg3 {[%emt 0:00:00]} Bxg2 {[%emt 0:01:54]} 27. Qxg2 {[%emt 0:00:00]} Kh8 {[%emt 0:00:03]} 28. Qd5 {[%emt 0:00:00]} Rg7 {[%emt 0:01:40]} 29. Rfg1 {[%emt 0:00:00]} Qd7 {[%emt 0:02:46]} 30. Qe4 {[%emt 0:00:00]} h6 {[%emt 0:01:33]} 31. Rh3 {[%emt 0:00:00]} Rh7 {[%emt 0:01:42]} 32. Rgg3 {[%emt 0:00:00]} Rg8 {[%emt 0:02:01]} 33. g5 {[%emt 0:00:00]} hxg5 {[%emt 0:09:54]} 34. hxg5 {[%emt 0:00:00]} Rxh3+ {[%emt 0:00:33]} 35. Rxh3+ {[%emt 0:00:00]} Kg7 {[%emt 0:00:01]} 36. g6 {[%emt 0:00:00]} d5 {[%emt 0:01:05]} 37. Rh7+ {[%emt 0:00:00]} Kf8 {[%emt 0:00:01]} 38. Rxd7 {[%emt 0:00:00]} dxe4 {[%emt 0:00:04]} 39. dxe4 {[%emt 0:00:00]} Ke8 {[%emt 0:01:13]} 40. Ra7 {[%emt 0:00:00]} Rh8+ {[%emt 0:00:20]} 41. Kg3 {[%emt 0:00:00]} Rh1 {[%emt 0:00:12]} 42. Rxa6 {[%emt 0:00:00]} 1-0

[Event "Catalonia Championship Absolute 2024"]
[Site "Salou Tarragona"]
[Date "2024.05.12"]
[Round "1.2"]
[White "Ribera Veganzones, Serni"]
[Black "Salinas Tomas, Daniel"]
[Result "1/2-1/2"]
[ECO "C88"]
[WhiteElo "2341"]
[BlackElo "2370"]
[Annotator "ChessBase"]
[PlyCount "54"]
[EventDate "2024.05.06"]
[EventType "k.o."]
[EventCountry "ESP"]
[SourceTitle "playchess.com"]
[Source "ChessBase"]
[SourceQuality "1"]
[TimeControl "5400+30"]

1. e4 {[%emt 0:00:03]} e5 {[%emt 0:00:13]} 2. Nf3 {[%emt 0:00:15]} Nc6 {[%emt 0:00:07]} 3. Bb5 {[%emt 0:00:08]} a6 {[%emt 0:00:06]} 4. Ba4 {[%emt 0:00:13]} Nf6 {[%emt 0:00:06]} 5. O-O {[%emt 0:00:41]} Be7 {[%emt 0:00:12]} 6. Re1 {[%emt 0:00:19]} b5 {[%emt 0:00:06]} 7. Bb3 {[%emt 0:00:12]} O-O {[%emt 0:00:22]} 8. a4 {[%emt 0:00:27]} b4 {[%emt 0:00:12]} 9. d3 {[%emt 0:00:54]} d6 {[%emt 0:00:19]} 10. Nbd2 {[%emt 0:01:21]} Be6 {[%emt 0:00:13]} 11. Bxe6 {[%emt 0:01:11]} fxe6 {[%emt 0:00:05]} 12. c3 {[%emt 0:00:35]} Rb8 {[%emt 0:01:10]} 13. Nc4 {[%emt 0:02:51]} Qe8 {[%emt 0:09:17]} 14. d4 {[%emt 0:09:10]} Qg6 {[%emt 0:04:43]} 15. dxe5 {[%emt 0:11:37]} Nxe4 {[%emt 0:00:54]} 16. exd6 {[%emt 0:00:36]} cxd6 {[%emt 0:00:33]} 17. Qe2 {[%emt 0:09:55]} d5 {[%emt 0:09:31]} 18. Nce5 {[%emt 0:03:17]} Nxe5 {[%emt 0:08:49]} 19. Nxe5 {[%emt 0:00:12]} Qf5 {[%emt 0:02:25]} 20. Nd7 {[%emt 0:06:53]} bxc3 {[%emt 0:01:27]} 21. bxc3 {[%emt 0:18:18]} Bc5 {[%emt 0:28:41]} 22. Be3 {[%emt 0:06:54]} Nxc3 {[%emt 0:00:58]} 23. Qd2 {[%emt 0:00:25]} Ne4 {[%emt 0:04:50]} 24. Qd3 {[%emt 0:00:27]} d4 {[%emt 0:04:59]} 25. Bxd4 {[%emt 0:00:56]} Qd5 {[%emt 0:01:09]} 26. Nxc5 {[%emt 0:11:45]} Nxc5 {[%emt 0:00:11]} 27. Qc3 {[%emt 0:01:38]} Rfc8 {[%emt 0:06:39]} 1/2-1/2

[Event "Catalonia Championship Absolute 2024"]
[Site "Salou Tarragona"]
[Date "2024.05.12"]
[Round "1.2"]
[White "Cervello Tost, Ferran"]
[Black "Garcia Ramos, Daniel"]
[Result "0-1"]
[ECO "A01"]
[WhiteElo "2316"]
[BlackElo "2406"]
[Annotator "ChessBase"]
[PlyCount "96"]
[EventDate "2024.05.06"]
[EventType "k.o."]
[EventCountry "ESP"]
[SourceTitle "playchess.com"]
[Source "ChessBase"]
[SourceQuality "1"]
[TimeControl "5400+30"]

1. b3 {[%emt 0:00:03]} e5 {[%emt 0:01:30]} 2. Bb2 {[%emt 0:00:07]} Nc6 {[%emt 0:00:18]} 3. e3 {[%emt 0:00:06]} Nf6 {[%emt 0:00:32]} 4. Bb5 {[%emt 0:00:09]} Bd6 {[%emt 0:00:46]} 5. Na3 {[%emt 0:00:17]} a6 {[%emt 0:02:20]} 6. Be2 {[%emt 0:00:30]} Be7 {[%emt 0:05:36]} 7. c4 {[%emt 0:02:10]} d5 {[%emt 0:03:12]} 8. Nc2 {[%emt 0:01:09]} O-O {[%emt 0:06:38]} 9. Nf3 {[%emt 0:03:11]} e4 {[%emt 0:04:10]} 10. Ne5 {[%emt 0:05:24]} Nxe5 {[%emt 0:01:19]} 11. Bxe5 {[%emt 0:00:03]} Nd7 {[%emt 0:00:35]} 12. Bg3 {[%emt 0:03:57]} dxc4 {[%emt 0:07:33]} 13. Bxc4 {[%emt 0:02:18]} Bf6 {[%emt 0:01:28]} 14. Rc1 {[%emt 0:00:19]} Ne5 {[%emt 0:00:55]} 15. O-O {[%emt 0:15:31]} Nxc4 {[%emt 0:02:08]} 16. bxc4 {[%emt 0:00:02]} Be6 {[%emt 0:00:17]} 17. Ne1 {[%emt 0:09:08]} b5 {[%emt 0:04:43]} 18. f3 {[%emt 0:04:48]} Bxc4 {[%emt 0:05:03]} 19. Rf2 {[%emt 0:00:01]} Bh4 {[%emt 0:20:19]} 20. Bxh4 {[%emt 0:04:06]} Qxh4 {[%emt 0:00:09]} 21. fxe4 {[%emt 0:01:28]} Bxa2 {[%emt 0:04:08]} 22. d3 {[%emt 0:02:05]} Be6 {[%emt 0:00:44]} 23. Nf3 {[%emt 0:01:46]} Qe7 {[%emt 0:05:49]} 24. d4 {[%emt 0:04:20]} a5 {[%emt 0:07:02]} 25. Ne5 {[%emt 0:02:03]} f6 {[%emt 0:02:06]} 26. Nc6 {[%emt 0:02:14]} Qe8 {[%emt 0:00:14]} 27. Rf4 {[%emt 0:07:57]} g5 {[%emt 0:01:38]} 28. Rf3 {[%emt 0:02:20]} Bc4 {[%emt 0:00:06]} 29. Rxc4 {[%emt 0:01:25]} bxc4 {[%emt 0:00:09]} 30. Qa4 {[%emt 0:00:24]} Qxe4 {[%emt 0:01:48]} 31. Qxc4+ {[%emt 0:00:22]} Kg7 {[%emt 0:00:39]} 32. Qc5 {[%emt 0:02:35]} Rf7 {[%emt 0:02:47]} 33. h4 {[%emt 0:03:27]} g4 {[%emt 0:02:51]} 34. Rg3 {[%emt 0:00:56]} a4 {[%emt 0:00:26]} 35. Nb4 {[%emt 0:05:07]} a3 {[%emt 0:00:29]} 36. Qc4 {[%emt 0:01:19]} h5 {[%emt 0:01:19]} 37. Na2 {[%emt 0:00:30]} Ra5 {[%emt 0:00:44]} 38. Kh2 {[%emt 0:02:33]} Qd5 {[%emt 0:02:51]} 39. Qb4 {[%emt 0:03:32]} Ra6 {[%emt 0:02:15]} 40. Qd2 {[%emt 0:03:31]} Rb6 {[%emt 0:01:20]} 41. Nc3 {[%emt 0:03:02]} Qa5 {[%emt 0:00:22]} 42. e4 {[%emt 0:01:43]} Rb2 {[%emt 0:01:12]} 43. Qf4 {[%emt 0:01:39]} a2 {[%emt 0:00:13]} 44. e5 {[%emt 0:01:47]} a1=Q {[%emt 0:00:52]} 45. Rxg4+ {[%emt 0:00:04]} hxg4 {[%emt 0:00:30]} 46. Qxg4+ {[%emt 0:00:02]} Kf8 {[%emt 0:00:08]} 47. Qc8+ {[%emt 0:00:20]} Ke7 {[%emt 0:00:24]} 48. e6 {[%emt 0:01:09]} Rxg2+ {[%emt 0:00:05]} 0-1

[Event "Catalonia Championship Absolute 2024"]
[Site "Salou Tarragona"]
[Date "2024.05.12"]
[Round "1.2"]
[White "Lemeshev, Ilya"]
[Black "Lorenzo De La Riva, Lazaro"]
[Result "1/2-1/2"]
[ECO "E00"]
[WhiteElo "2313"]
[BlackElo "2422"]
[Annotator "TA"]
[PlyCount "144"]
[EventDate "2024.05.06"]
[EventType "k.o."]
[EventCountry "ESP"]
[SourceTitle "playchess.com"]
[Source "ChessBase"]
[SourceQuality "1"]
[TimeControl "5400+30"]

{[%evp 43,144,30,31,35,33,33,33,32,59,55,61,59,58,61,67,69,69,26,52,41,45,17,50,50,49,12,21,21,105,31,34,14,14,6,0,0,0,0,0,0,0,0,43,43,43,43,43,47,47,36,43,43,43,43,43,43,43,43,43,43,43,43,43,43,43,34,34,34,34,0,34,33,34,33,34,33,33,16,33,0,0,0,33,33,33,0,0,0,0,0,0,0,0,0,0,-12,-12,-28,-28,-28,-13,-28,-28]} 1. d4 {[%emt 0:00:14]} Nf6 {[%emt 0:00:28]} 2. c4 {[%emt 0:00:15]} e6 {[%emt 0:00:08]} 3. g3 {[%emt 0:00:24]} Bb4+ {[%emt 0:00:45]} 4. Nd2 {[%emt 0:00:32]} c5 {[%emt 0:00:08]} 5. a3 {[%emt 0:00:39]} Bxd2+ {[%emt 0:00:17]} 6. Qxd2 {[%emt 0:00:26]} Nc6 {[%emt 0:00:07] E00: Catalan Bogo-Indian (3 g3 Bb4+).} 7. Nf3 {[%emt 0:07:01]} Ne4 {[%emt 0:03:28]} 8. Qd3 {[%emt 0:03:01]} Qa5+ {[%emt 0:00:39]} 9. Nd2 {[%emt 0:01:29]} d5 {[%emt 0:06:01]} 10. dxc5 $146 {[%emt 0:11:52]} ({Predecessor:} 10. f3 Nd6 11. dxc5 Nxc4 12. Qc3 Qxc3 13. bxc3 Ne3 14. Ra2 e5 15. Ne4 dxe4 16. Bxe3 {½-½ Ivanchuk,V (2667)-Wei,Y (2726) FIDE World Cup 2023 (3.1)}) 10... Nxc5 {[%emt 0:01:27]} 11. Qc2 {[%emt 0:02:54]} Nd4 {[%emt 0:01:02]} 12. Qd1 {[%emt 0:00:15]} Ndb3 {[%emt 0:07:18]} 13. Rb1 {[%emt 0:00:53]} dxc4 {[%emt 0:04:05]} 14. Bg2 {[%emt 0:00:56]} O-O {[%emt 0:00:40]} 15. O-O {[%emt 0:01:28]} Rd8 {[%emt 0:05:33]} 16. Nxc4 {[%emt 0:05:00]} Rxd1 {[%emt 0:00:54]} 17. Nxa5 {[%emt 0:00:53]} Rxf1+ {[%emt 0:00:22]} 18. Kxf1 {[%emt 0:00:01]} Nxa5 {[%emt 0:05:05]} 19. b4 {[%emt 0:00:12]} Ncb3 {[%emt 0:00:50]} 20. Be3 {[%emt 0:06:56]} Bd7 {[%emt 0:04:13]} 21. bxa5 {[%emt 0:01:12]} Nxa5 {[%emt 0:00:02]} 22. Bxb7 {[%emt 0:01:18]} Rb8 {[%emt 0:01:50]} 23. Be4 $1 {[%emt 0:00:01]} (23. Bxa7 $2 {is the wrong capture.} Rxb7 24. Rxb7 Nxb7 $19) 23... Rxb1+ {[%emt 0:00:08]} 24. Bxb1 {[%emt 0:00:05]} Nc4 {[%emt 0:00:04]} 25. Bc1 {[%emt 0:00:32]} (25. Bxa7 $2 {perishes.} Nd2+ (25... Nxa3 26. Be4 $14) 26. Ke1 Nxb1 $19) 25... a5 {[%emt 0:01:19]} 26. Bd3 {[%emt 0:08:55]} Nd6 {[%emt 0:00:48]} 27. Ke1 {[%emt 0:01:07]} e5 {[%emt 0:00:41]} 28. Kd2 {[%emt 0:01:33]} f5 {[%emt 0:02:32]} 29. Bb2 {[%emt 0:08:08]} Be6 {[%emt 0:03:17]} 30. Kd1 {[%emt 0:07:09]} Nc4 {[%emt 0:01:07]} 31. Bc1 {[%emt 0:00:06]} Kf7 {[%emt 0:00:22]} 32. f3 {[%emt 0:00:40]} a4 {[%emt 0:01:24]} 33. Kc2 {[%emt 0:01:50]} Nb6 {[%emt 0:01:36]} 34. Bb2 {[%emt 0:01:26]} Bb3+ {[%emt 0:00:08]} 35. Kc3 {[%emt 0:00:39]} Nd5+ {[%emt 0:00:01]} 36. Kd2 {[%emt 0:00:19]} Ke6 {[%emt 0:00:07]} 37. Ba6 {[%emt 0:04:34]} g6 {[%emt 0:00:48]} 38. Kd3 {[%emt 0:00:45]} Kd6 {[%emt 0:01:48]} 39. Bc1 {[%emt 0:07:04]} Kc5 {[%emt 0:05:06]} 40. Bh6 {[%emt 0:01:44]} Nc7 {[%emt 0:03:58]} 41. Be3+ {[%emt 0:01:24]} Kc6 {[%emt 0:00:19]} 42. Bc4 $1 {[%emt 0:02:22]} e4+ {[%emt 0:00:02]} 43. fxe4 {[%emt 0:00:06]} fxe4+ {[%emt 0:00:04]} 44. Kd4 {[%emt 0:00:04]} Nb5+ {[%emt 0:00:16]} 45. Bxb5+ {[%emt 0:00:05]} Kxb5 {[%emt 0:00:05]} 46. Kxe4 {[%emt 0:00:03]} Bd1 {[%emt 0:00:11]} 47. Kd3 {[%emt 0:00:17]} Kc6 {[%emt 0:00:07]} 48. Bd2 {[%emt 0:00:38]} Kd5 {[%emt 0:00:07]} 49. e4+ {[%emt 0:00:04]} Ke6 {[%emt 0:00:04]} 50. Ke3 {[%emt 0:00:11]} Bc2 {[%emt 0:00:08]} 51. Bc3 {[%emt 0:00:11]} h5 {[%emt 0:00:55]} 52. Kf4 {[%emt 0:00:07]} Bb1 {[%emt 0:00:09]} 53. h3 {[%emt 0:00:29]} Bc2 {[%emt 0:00:06]} 54. e5 {[%emt 0:00:17]} Bb1 {[%emt 0:00:12]} 55. Kg5 {[%emt 0:00:15]} Bc2 {[%emt 0:00:07]} 56. Kf4 {[%emt 0:00:20]} Bf5 {[%emt 0:00:12]} 57. h4 {[%emt 0:00:09]} Bc2 {[%emt 0:00:07]} 58. Ke3 {[%emt 0:00:02]} Kd5 {[%emt 0:00:08]} 59. Bb2 {[%emt 0:00:05]} Bf5 {[%emt 0:00:08]} 60. Kd2 {[%emt 0:00:05]} Kc4 {[%emt 0:00:06]} 61. Bc1 {[%emt 0:00:10]} Kd4 {[%emt 0:00:18]} 62. Bb2+ {[%emt 0:00:06]} Kc4 {[%emt 0:00:02]} 63. Ke2 {[%emt 0:00:17]} Kd5 {[%emt 0:00:41]} 64. Bc3 {[%emt 0:00:07]} Ke4 {[%emt 0:00:10]} 65. Ba1 {[%emt 0:00:12]} Be6 {[%emt 0:00:09]} 66. Bb2 {[%emt 0:00:14]} Bf5 {[%emt 0:00:37]} 67. Bc3 {[%emt 0:00:19]} Bd7 {[%emt 0:00:13]} 68. Kd2 {[%emt 0:00:08]} Bf5 {[%emt 0:00:29]} 69. Kc2 {[%emt 0:00:59]} Kf3+ {[%emt 0:00:41]} 70. Kd1 {[%emt 0:00:05]} Kxg3 {[%emt 0:00:14]} 71. Be1+ {[%emt 0:00:05]} Kf4 {[%emt 0:00:07]} 72. Bc3 {[%emt 0:22:06]} Kg4 1/2-1/2

[Event "Catalonia Championship Absolute 2024"]
[Site "Salou Tarragona"]
[Date "2024.05.12"]
[Round "1.2"]
[White "Perpinya Rofes, Lluis Maria"]
[Black "Narciso Dublan, Marc"]
[Result "0-1"]
[ECO "B12"]
[WhiteElo "2205"]
[BlackElo "2424"]
[Annotator "RC"]
[PlyCount "68"]
[EventDate "2024.05.06"]
[EventType "k.o."]
[EventCountry "ESP"]
[SourceTitle "playchess.com"]
[Source "ChessBase"]
[SourceQuality "1"]
[TimeControl "5400+30"]

1. e4 {[%emt 0:00:10]} c6 {[%emt 0:00:21]} 2. d4 {[%emt 0:00:14]} d5 {[%emt 0:00:09]} 3. f3 {[%emt 0:01:53]} e6 {[%emt 0:01:32]} 4. Nc3 {[%emt 0:00:27]} Qb6 {[%emt 0:02:23]} 5. a3 {[%emt 0:03:53]} Nf6 {[%emt 0:05:32]} 6. e5 {[%emt 0:08:21]} Nfd7 {[%emt 0:00:49]} 7. f4 {[%emt 0:00:56]} c5 {[%emt 0:00:20]} 8. Na4 {[%emt 0:07:34]} Qa5+ {[%emt 0:03:40]} 9. c3 {[%emt 0:00:09]} c4 {[%emt 0:01:23]} 10. b4 {[%emt 0:01:50]} cxb3 {[%emt 0:00:13]} 11. Qxb3 {[%emt 1:10:33]} Nc6 {[%emt 0:11:27]} 12. Nf3 {[%emt 0:00:00]} Rb8 {[%emt 1:08:41]} 13. Nb2 {[%emt 0:00:00]} b5 {[%emt 0:00:00]} 14. Bd2 {[%emt 0:00:00]} b4 {[%emt 0:01:00]} 15. Nd1 {[%emt 0:00:00]} bxa3 {[%emt 0:00:00]} 16. Qc2 {[%emt 0:00:00]} Nb6 {[%emt 0:00:00]} 17. Bd3 {[%emt 0:00:00]} Qa4 {[%emt 0:00:00]} 18. Ne3 {[%emt 0:00:00]} Na5 {[%emt 0:00:00]} 19. O-O {[%emt 0:00:00]} Qxc2 {[%emt 0:00:00]} 20. Nxc2 {[%emt 0:00:00]} Nbc4 {[%emt 0:00:00]} 21. Rfb1 {[%emt 0:00:00]} Rb3 {[%emt 0:00:00]} 22. Bxc4 {[%emt 0:00:00]} dxc4 {[%emt 0:00:00]} 23. Bc1 {[%emt 0:00:00]} Rxc3 {[%emt 0:00:00]} 24. Nxa3 {[%emt 0:00:31]} Nb3 {[%emt 0:00:00]} 25. Bb2 {[%emt 0:02:14]} Rd3 {[%emt 0:02:21]} 26. Ne1 {[%emt 0:00:53]} Nxa1 {[%emt 0:01:07]} 27. Nxd3 {[%emt 0:00:50]} cxd3 {[%emt 0:00:18]} 28. Rxa1 {[%emt 0:00:11]} Bb7 {[%emt 0:01:56]} 29. Bc3 {[%emt 0:02:46]} Kd7 {[%emt 0:00:58]} 30. Nc4 {[%emt 0:00:18]} a6 {[%emt 0:00:06]} 31. Rb1 {[%emt 0:01:14]} Bd5 {[%emt 0:00:56]} 32. Ne3 {[%emt 0:00:50]} Be4 {[%emt 0:00:28]} 33. Rb6 {[%emt 0:00:31]} Be7 {[%emt 0:00:27]} 34. d5 {[%emt 0:00:31]} Bc5 {[%emt 0:00:30]} 0-1